bitfinex/quotes_BTCUSD_20250417
["timestamp","ask_amount","ask_price","bid_price","bid_amount"]
[1744848002258,0.00736929,84012.0,84011.0,0.004]
[1744848005337,0.0097479,84012.0,84011.0,0.004]
[1744848006072,0.24003666,84012.0,84011.0,0.004]
[1744848006475,0.1060479,84012.0,84011.0,0.004]
[1744848006678,0.00736929,84012.0,84011.0,0.004]
[1744848007612,0.00736929,84012.0,84011.0,0.002]
[1744848007941,0.00736929,84012.0,84009.0,0.01190348]
[1744848008142,0.00636929,84012.0,84011.0,0.002]
[1744848008640,0.00636929,84012.0,84011.0,0.24006406]
[1744848009667,0.00636929,84012.0,84011.0,0.23806406]
[1744848009830,0.00736929,84012.0,84011.0,0.24006406]
[1744848010030,0.00736929,84012.0,84011.0,0.24206406]
[1744848010208,0.00636929,84012.0,84011.0,0.24006406]
[1744848010412,0.00736929,84012.0,84011.0,0.24206406]
[1744848010809,0.00736929,84012.0,84011.0,0.25364886]
[1744848011009,0.00736929,84012.0,84011.0,0.24206406]
[1744848011649,0.00736929,84012.0,84011.0,0.004]
[1744848012200,0.05236929,84012.0,84011.0,0.004]
[1744848013461,0.0547479,84012.0,84011.0,0.004]
[1744848015667,0.22279581,84012.0,84011.0,0.004]
[1744848016266,0.22279581,84012.0,84011.0,0.002]
[1744848016432,0.22279581,84012.0,84005.0,0.0004213]
[1744848016433,0.01190362,84008.0,84005.0,0.0004213]
[1744848016632,0.289554,84007.0,84005.0,0.0004213]
[1744848016874,0.28717539,84007.0,84005.0,0.0004213]
[1744848017195,0.00237861,84006.0,84005.0,0.0004213]
[1744848017763,0.00835709,84006.0,84005.0,0.0004213]
[1744848018410,0.10249328,84006.0,84005.0,0.0004213]
[1744848018585,0.40194119,84006.0,84005.0,0.0004213]
[1744848018787,0.21956258,84006.0,84005.0,0.0004213]
[1744848018991,0.22194119,84006.0,84005.0,0.0004213]
[1744848019788,0.22394119,84006.0,84005.0,0.0014213]
[1744848021607,0.36848204,84006.0,84005.0,0.0014213]
[1744848021802,0.36610343,84006.0,84005.0,0.0014213]
[1744848022932,0.23809523,84000.0,83997.0,1e-08]
[1744848023104,0.34794175,83998.0,83997.0,1e-08]
[1744848023305,0.64314372,83998.0,83997.0,1e-08]
[1744848023506,0.23816328,83976.0,83974.0,0.0004214]
[1744848023729,0.29270812,83976.0,83974.0,0.0004214]
[1744848023934,0.29032951,83976.0,83974.0,0.0004214]
[1744848024678,0.29929709,83976.0,83974.0,1e-08]
[1744848024903,0.25007739,83974.0,83961.0,0.002]
[1744848025060,0.23817462,83972.0,83961.0,0.002]
[1744848025428,0.2439306,83972.0,83961.0,0.002]
[1744848026986,0.2449306,83972.0,83961.0,0.002]
[1744848027216,0.2449306,83972.0,83971.0,0.0024212]
[1744848030178,0.24386221,83972.0,83971.0,0.0024212]
[1744848036408,0.28926221,83972.0,83971.0,0.0024212]
[1744848036586,0.24386221,83972.0,83971.0,0.0024212]
[1744848044172,0.24386221,83972.0,83971.0,0.02463118]
[1744848045185,0.24382221,83972.0,83971.0,0.02463118]
[1744848045485,0.24382221,83972.0,83971.0,0.03574653]
[1744848046609,0.24382221,83972.0,83971.0,0.02463118]
[1744848048398,0.24382221,83972.0,83971.0,0.03576098]
[1744848058404,0.00675598,83972.0,83971.0,0.03576098]
[1744848062993,0.23465449,83973.0,83971.0,0.03576098]
[1744848063187,0.00417141,83972.0,83971.0,0.013551]
[1744848063354,0.25007739,83974.0,83971.0,0.0219141]
[1744848063689,0.00356897,83973.0,83971.0,0.0219141]
[1744848063880,0.00356897,83973.0,83971.0,0.0199141]
[1744848064088,0.24174315,83973.0,83972.0,0.02230168]
[1744848064465,0.00356897,83973.0,83972.0,0.02230168]
[1744848064628,0.00356897,83973.0,83972.0,0.03343148]
[1744848066313,0.00456897,83973.0,83972.0,0.03343148]
[1744848066490,0.00456897,83973.0,83972.0,0.03443148]
[1744848066671,0.00356897,83973.0,83972.0,0.03443148]
[1744848067095,0.00456897,83973.0,83972.0,0.03543148]
[1744848068538,0.00456897,83973.0,83972.0,0.53099565]
[1744848068756,0.001,83973.0,83972.0,0.57781401]
[1744848072169,0.001,83973.0,83972.0,0.99661401]
[1744848074197,0.01190788,83978.0,83972.0,0.94741401]
[1744848074407,0.01190788,83978.0,83974.0,0.23816786]
[1744848074622,0.01190759,83980.0,83975.0,0.35761187]
[1744848074811,0.01190759,83980.0,83975.0,0.39104335]
[1744848074984,0.01190717,83983.0,83977.0,0.23816016]
[1744848074985,0.01190731,83982.0,83977.0,0.23816016]
[1744848075186,0.05770674,83986.0,83979.0,0.23815345]
[1744848075418,0.01190731,83982.0,83978.0,0.02230168]
[1744848075612,0.01190731,83982.0,83979.0,0.02230168]
[1744848075813,0.01190717,83983.0,83979.0,0.02230168]
[1744848076113,0.01190688,83985.0,83981.0,0.2381491]
[1744848076318,0.01190674,83986.0,83981.0,0.2381491]
[1744848076514,0.01190702,83984.0,83982.0,0.02230168]
[1744848077125,0.01190702,83984.0,83983.0,0.02230168]
[1744848077645,0.25004423,83986.0,83983.0,0.02230168]
[1744848077838,0.01190674,83986.0,83983.0,0.02230168]
[1744848077992,0.0119066,83987.0,83984.0,0.01112676]
[1744848078194,0.01190646,83988.0,83985.0,0.23813776]
[1744848078397,0.01190617,83990.0,83986.0,0.02230168]
[1744848078595,0.25003207,83990.0,83986.0,0.02230168]
[1744848078822,0.01190632,83989.0,83987.0,0.02230168]
[1744848079201,0.01190632,83989.0,83985.0,0.02230168]
[1744848079406,0.002,83988.0,83987.0,0.23813209]
[1744848079690,0.002,83988.0,83986.0,0.02230168]
[1744848079955,0.002,83988.0,83987.0,0.25025686]
[1744848080157,0.002,83988.0,83987.0,0.27255854]
[1744848080323,0.01190617,83990.0,83987.0,0.27155854]
[1744848080523,0.01190617,83990.0,83988.0,0.02230168]
[1744848080754,0.23811544,83993.0,83989.0,0.23812642]
[1744848080962,0.23811544,83993.0,83989.0,0.24925119]
[1744848081326,0.25002651,83992.0,83989.0,0.01112477]
[1744848082138,0.01190603,83991.0,83988.0,0.01112477]
[1744848082720,0.01190603,83991.0,83989.0,0.02324996]
[1744848082919,0.23812358,83990.0,83989.0,0.02224996]
[1744848083742,0.23812358,83990.0,83989.0,0.02324996]
[1744848084534,0.23812358,83990.0,83989.0,0.001]
[1744848084938,0.01590603,83991.0,83989.0,0.001]
[1744848085239,0.2540294,83991.0,83989.0,0.001]
[1744848085439,0.0119066,83987.0,83981.0,0.25005625]
[1744848085639,0.0119066,83987.0,83983.0,0.23814209]
[1744848085835,0.0119066,83987.0,83984.0,0.02225223]
[1744848086037,0.01190646,83988.0,83984.0,0.02225223]
[1744848086236,0.002,83990.0,83989.0,0.001]
[1744848086576,0.01190561,83994.0,83989.0,0.27150456]
[1744848086993,0.29581626,83995.0,83990.0,0.02225223]
[1744848086994,0.01190575,83993.0,83990.0,0.02225223]
[1744848087139,0.01190561,83994.0,83990.0,0.02225223]
[1744848087345,0.24431763,83997.0,83992.0,0.23811746]
[1744848087574,0.00621175,83997.0,83996.0,0.23810657]
[1744848087789,0.01190532,83996.0,83993.0,0.23811508]
[1744848088059,0.01190547,83995.0,83994.0,0.02224959]
[1744848088277,0.23811791,83992.0,83990.0,0.02224959]
[1744848088498,0.23811791,83992.0,83991.0,0.01112627]
[1744848088693,0.23811791,83992.0,83991.0,0.03337586]
[1744848089425,0.23811791,83992.0,83991.0,0.01112627]
[1744848089653,0.23911791,83992.0,83991.0,0.01512627]
[1744848089852,0.23911791,83992.0,83991.0,0.004]
[1744848090110,0.23911791,83992.0,83991.0,0.02625429]
[1744848090312,0.23911791,83992.0,83991.0,0.02925429]
[1744848090671,0.23911791,83992.0,83991.0,0.04038056]
[1744848091631,0.001,83992.0,83991.0,0.04038056]
[1744848093885,0.001,83992.0,83991.0,0.16220947]
[1744848095022,0.001,83992.0,83991.0,0.17055836]
[1744848095434,0.001,83992.0,83991.0,0.16817736]
[1744848095870,0.001,83992.0,83991.0,0.04872945]
[1744848096312,0.0477,83992.0,83991.0,0.04872945]
[1744848098046,0.0477,83992.0,83991.0,0.04038056]
[1744848099401,0.001,83992.0,83991.0,0.04038056]
[1744848099616,0.001,83992.0,83991.0,0.81674922]
[1744848100042,0.001,83992.0,83991.0,0.82510669]
[1744848102725,0.001,83992.0,83991.0,0.58698594]
[1744848102925,0.001,83992.0,83991.0,0.46753803]
[1744848102926,0.00545193,83992.0,83991.0,0.46753803]
[1744848103144,0.00545193,83992.0,83991.0,0.70565878]
[1744848103423,0.001,83992.0,83991.0,0.70565878]
[1744848104098,0.00545193,83992.0,83991.0,0.69730131]
[1744848104261,0.001,83992.0,83991.0,0.27850131]
[1744848105266,0.001,83992.0,83991.0,0.28685678]
[1744848108223,0.00545733,83992.0,83991.0,0.28685678]
[1744848108771,0.001,83992.0,83991.0,0.28685678]
[1744848109119,0.00544509,83992.0,83991.0,0.27850131]
[1744848109363,0.001,83992.0,83991.0,0.27850131]
[1744848109538,0.00545049,83992.0,83991.0,0.27850131]
[1744848109753,0.001,83992.0,83991.0,0.27850131]
[1744848109952,0.00545049,83992.0,83991.0,0.27850131]
[1744848110159,0.001,83992.0,83991.0,0.27850131]
[1744848110361,0.00545049,83992.0,83991.0,0.27850131]
[1744848110514,0.001,83992.0,83991.0,0.27850131]
[1744848110943,0.00545049,83992.0,83991.0,0.27850131]
[1744848111779,0.001,83992.0,83991.0,0.27850131]
[1744848112346,0.00545049,83992.0,83991.0,0.27850131]
[1744848113611,0.6770684,83992.0,83991.0,0.04038056]
[1744848114018,0.67882966,83992.0,83991.0,0.04038056]
[1744848115463,0.67882966,83992.0,83991.0,0.02925429]
[1744848115661,0.67882966,83992.0,83991.0,0.007]
[1744848116302,0.67882966,83992.0,83991.0,0.0292883]
[1744848116596,0.67882966,83992.0,83991.0,0.007]
[1744848117954,0.79827757,83992.0,83991.0,0.007]
[1744848124584,0.80740817,83992.0,83991.0,0.007]
[1744848132810,0.68796026,83992.0,83991.0,0.007]
[1744848133943,0.00721175,83992.0,83991.0,0.007]
[1744848134323,0.00721175,83992.0,83991.0,0.02924165]
[1744848134560,0.00721175,83992.0,83991.0,0.27848421]
[1744848134767,0.00721175,83992.0,83991.0,0.04036346]
[1744848138185,0.00721175,83992.0,83991.0,0.27848421]
[1744848142540,0.00721175,83992.0,83991.0,0.28682851]
[1744848144115,0.00721175,83992.0,83991.0,0.04870776]
[1744848144956,0.00721175,83992.0,83991.0,0.04036346]
[1744848145564,0.24532966,83992.0,83991.0,0.04036346]
[1744848149001,0.00721175,83992.0,83991.0,0.04036346]
[1744848150506,0.00959036,83992.0,83991.0,0.04036346]
[1744848151092,0.51603827,83992.0,83991.0,0.007]
[1744848151293,0.51365966,83992.0,83991.0,0.007]
[1744848157352,0.69464842,83992.0,83991.0,1e-08]
[1744848157494,0.70464842,83992.0,83991.0,1e-08]
[1744848157897,0.69464842,83992.0,83991.0,1e-08]
[1744848159111,0.01190788,83978.0,83975.0,0.02225828]
[1744848159333,0.01428649,83978.0,83976.0,0.02225828]
[1744848159745,0.25865827,83978.0,83977.0,0.02225828]
[1744848159948,0.25627966,83978.0,83977.0,0.02225828]
[1744848160374,0.25727966,83978.0,83977.0,0.02225828]
[1744848160685,0.25627966,83978.0,83977.0,0.02225828]
[1744848160840,0.25727966,83978.0,83977.0,0.02225828]
[1744848162647,0.23817179,83973.0,83972.0,0.00045416]
[1744848163046,0.23817179,83973.0,83972.0,0.01157884]
[1744848163247,0.23817179,83973.0,83972.0,0.03382821]
[1744848163744,0.23817179,83973.0,83972.0,0.03682821]
[1744848163946,0.001,83973.0,83972.0,0.27500283]
[1744848167511,0.001,83973.0,83972.0,0.03682821]
[1744848168457,0.001,83973.0,83972.0,0.27500283]
[1744848171362,0.001,83973.0,83972.0,0.03682821]
[1744848177545,0.001,83973.0,83972.0,0.27500283]
[1744848177753,0.001,83973.0,83972.0,0.03682821]
[1744848179011,0.001,83973.0,83972.0,0.04518674]
[1744848182314,0.001,83973.0,83972.0,0.16701623]
[1744848182525,0.001,83973.0,83972.0,0.21331623]
[1744848185516,0.001,83973.0,83972.0,0.21093465]
[1744848187727,0.001,83973.0,83972.0,0.21331593]
[1744848189371,0.001,83973.0,83972.0,0.63211593]
[1744848189696,0.001,83973.0,83972.0,0.62973465]
[1744848191150,0.0458,84010.0,84003.0,0.01190433]
[1744848191355,0.0008424,84023.0,84003.0,0.01190433]
[1744848191356,0.0008424,84023.0,84005.0,0.23808106]
[1744848191649,0.0008424,84023.0,84005.0,0.3658875]
[1744848191833,0.0008424,84023.0,84005.0,0.81902129]
[1744848192035,0.0008424,84023.0,84022.0,0.23803289]
[1744848192312,0.0008424,84023.0,84022.0,0.93639007]
[1744848192498,0.0008424,84023.0,84022.0,0.9423687]
[1744848192713,0.00090206,84023.0,84022.0,0.9423687]
[1744848193072,0.00090206,84023.0,84022.0,0.95349338]
[1744848193949,0.00090206,84023.0,84022.0,0.59701258]
[1744848194449,0.00180256,84023.0,84022.0,0.59901258]
[1744848194892,0.23983262,84023.0,84022.0,0.59265405]
[1744848195081,0.23983262,84023.0,84022.0,0.16272937]
[1744848195486,0.23983262,84023.0,84022.0,0.005]
[1744848199070,0.58443655,84023.0,84022.0,0.005]
[1744848200275,0.71260046,84023.0,84022.0,0.005]
[1744848200635,0.76150046,84023.0,84022.0,0.005]
[1744848201994,0.8831222,84023.0,84022.0,0.005]
[1744848202189,0.96604131,84023.0,84022.0,0.005]
[1744848202593,0.77604131,84023.0,84022.0,0.005]
[1744848204362,0.76150046,84023.0,84022.0,0.005]
[1744848204658,0.75278446,84023.0,84022.0,0.005]
[1744848204804,0.63333655,84023.0,84022.0,0.005]
[1744848206910,0.05530649,84023.0,84022.0,0.005]
[1744848207082,0.00640649,84023.0,84022.0,0.005]
[1744848207656,0.00640649,84023.0,84022.0,0.1268282]
[1744848208028,0.00180256,84023.0,84022.0,0.14661018]
[1744848208374,0.00180256,84023.0,84022.0,0.14899014]
[1744848208570,0.00180256,84023.0,84022.0,0.15769096]
[1744848209185,0.00180256,84023.0,84022.0,0.16599979]
[1744848211238,0.00180256,84023.0,84022.0,0.21477953]
[1744848211796,0.00180256,84023.0,84022.0,0.21239979]
[1744848211956,0.00180256,84023.0,84022.0,0.63119979]
[1744848212156,0.00180256,84023.0,84022.0,0.58479979]
[1744848212429,0.00180256,84023.0,84022.0,0.58279979]
[1744848212574,0.00080256,84023.0,84022.0,0.57979979]
[1744848212782,0.00080256,84023.0,84022.0,0.58379979]
[1744848213967,0.00180256,84023.0,84022.0,0.58879979]
[1744848225160,0.00051197,84026.0,84025.0,0.23802439]
[1744848225374,0.00051197,84026.0,84025.0,0.35985222]
[1744848225511,0.00051197,84026.0,84025.0,0.36578113]
[1744848225712,0.00051197,84026.0,84025.0,0.39902418]
[1744848226362,0.00051197,84026.0,84025.0,0.40202418]
[1744848227319,0.00151197,84026.0,84025.0,0.40602418]
[1744848227521,0.00151197,84026.0,84025.0,0.82482418]
[1744848229382,0.00151197,84026.0,84025.0,0.96174418]
[1744848234866,0.00151197,84026.0,84025.0,0.82482418]
[1744848235097,0.00151197,84026.0,84025.0,0.96174418]
[1744848246551,0.00151197,84026.0,84025.0,0.82482418]
[1744848246774,0.00151197,84026.0,84025.0,0.96174418]
[1744848247996,0.05061197,84026.0,84025.0,0.04855188]
[1744848248201,0.09851197,84026.0,84025.0,0.04855188]
[1744848248362,0.10089058,84026.0,84025.0,0.04024305]
[1744848248562,0.10089058,84026.0,84025.0,0.02916227]
[1744848248563,0.44710233,84026.0,84025.0,0.02916227]
[1744848248755,0.44472372,84026.0,84025.0,0.02916227]
[1744848248959,0.56417163,84026.0,84025.0,0.02916227]
[1744848249363,0.56417163,84026.0,84025.0,0.007]
[1744848249989,0.56417163,84026.0,84002.0,0.03339255]
[1744848249990,0.23808673,84003.0,84002.0,0.03339255]
[1744848250201,0.23808673,84003.0,84002.0,0.01119051]
[1744848250202,0.33408673,84003.0,84002.0,0.01119051]
[1744848251228,0.33508673,84003.0,84002.0,0.01519051]
[1744848251376,0.33508673,84003.0,84002.0,0.00405966]
[1744848251582,0.33508673,84003.0,84002.0,0.00705966]
[1744848253128,0.8780394,84003.0,84002.0,0.00705966]
[1744848253356,0.8780394,84003.0,83991.0,0.0004213]
[1744848253357,0.23811791,83992.0,83991.0,0.0004213]
[1744848253554,0.28679652,83992.0,83991.0,0.0004213]
[1744848253726,0.28441791,83992.0,83991.0,0.0004213]
[1744848254704,0.28541791,83992.0,83991.0,0.0014213]
[1744848255586,0.28541791,83992.0,83991.0,0.0024213]
[1744848260887,0.001,83992.0,83991.0,0.24054205]
[1744848261846,0.001,83992.0,83991.0,0.35998996]
[1744848262786,0.001,83992.0,83991.0,0.91610996]
[1744848262999,0.001,83992.0,83991.0,0.96330996]
[1744848263352,0.001,83992.0,83991.0,0.98540877]
[1744848263558,0.001,83992.0,83991.0,0.99645817]
[1744848263760,0.001,83992.0,83991.0,0.99545817]
[1744848264159,0.00013646,84003.0,84002.0,0.23808956]
[1744848264355,0.00013646,84003.0,84002.0,0.35753747]
[1744848265857,0.00213646,84003.0,84002.0,0.35853747]
[1744848268701,0.00213646,84003.0,84002.0,0.77733747]
[1744848268910,0.00213646,84003.0,84002.0,0.78839796]
[1744848269067,0.00213646,84003.0,84002.0,0.88369796]
[1744848269666,0.00213646,84003.0,84002.0,0.89199395]
[1744848270082,0.00113646,84003.0,84002.0,0.89599395]
[1744848270281,0.00113646,84003.0,84002.0,0.88769796]
[1744848270701,0.00113646,84003.0,84002.0,0.88569796]
[1744848271052,0.00213646,84003.0,84002.0,1.24523881]
[1744848271408,0.00213646,84003.0,84002.0,1.25353541]
[1744848272448,0.01427841,84035.0,84002.0,1.25353541]
[1744848272449,0.00237861,84035.0,84025.0,0.23802439]
[1744848272790,0.0008428,84037.0,84025.0,0.23802439]
[1744848272791,0.00322141,84037.0,84025.0,0.3574723]
[1744848273164,0.0008428,84037.0,84025.0,0.3574723]
[1744848273671,0.00151197,84026.0,84025.0,0.3584723]
[1744848274658,0.00151197,84026.0,84025.0,0.36906486]
[1744848274866,0.00051197,84026.0,84025.0,0.36906486]
[1744848276169,0.00051197,84026.0,84025.0,0.37106486]
[1744848276375,0.00051197,84026.0,84025.0,0.38213314]
[1744848277222,0.00051197,84026.0,84025.0,0.38013314]
[1744848277357,0.00051197,84026.0,84025.0,0.80193314]
[1744848277558,0.00151197,84026.0,84025.0,0.80493314]
[1744848279222,0.00151197,84026.0,84025.0,0.79386486]
[1744848281256,0.00151197,84026.0,84025.0,0.93178486]
[1744848282110,0.00151197,84026.0,84025.0,0.94284436]
[1744848285515,0.0008428,84037.0,84025.0,0.94284436]
[1744848285516,0.0008428,84037.0,84036.0,0.57799324]
[1744848285672,0.0008428,84037.0,84036.0,0.69744115]
[1744848285673,0.00097939,84037.0,84036.0,0.69744115]
[1744848286568,0.00097939,84037.0,84036.0,0.75790065]
[1744848287326,0.00097939,84037.0,84036.0,0.75990065]
[1744848287922,0.00097939,84037.0,84036.0,0.76190065]
[1744848288177,0.000843,84043.0,84042.0,0.57797624]
[1744848288350,0.000843,84043.0,84042.0,1.25410415]
[1744848288550,0.000843,84043.0,84042.0,1.26516365]
[1744848290242,0.002843,84043.0,84042.0,1.26516365]
[1744848291139,0.000843,84043.0,84042.0,1.26516365]
[1744848291341,0.000843,84043.0,84042.0,1.26616365]
[1744848292152,0.000843,84043.0,84042.0,1.26816365]
[1744848293723,0.000843,84043.0,84042.0,1.13028365]
[1744848293927,0.000843,84043.0,84042.0,1.31366365]
[1744848294327,0.002,84049.0,84047.0,0.23796209]
[1744848294531,0.002,84049.0,84047.0,0.69978896]
[1744848294733,0.002,84049.0,84047.0,0.69741]
[1744848294936,0.002,84049.0,84047.0,0.83529]
[1744848295726,0.002,84049.0,84047.0,0.8493495]
[1744848296932,0.002,84049.0,84047.0,0.8523495]
[1744848297310,0.002,84049.0,84047.0,0.9004495]
[1744848297896,0.002,84049.0,84047.0,1.3192495]
[1744848299260,1e-08,84048.0,84047.0,1.3192495]
[1744848299841,0.0008426,84055.0,84054.0,0.23794227]
[1744848300042,0.0008426,84055.0,84054.0,0.35976903]
[1744848300385,0.0008426,84055.0,84054.0,0.35739018]
[1744848300506,0.0008426,84055.0,84054.0,0.36844968]
[1744848301312,0.0008426,84055.0,84054.0,0.37044968]
[1744848301555,0.0008426,84055.0,84054.0,0.37876045]
[1744848301755,0.0008426,84055.0,84054.0,0.38176045]
[1744848302640,0.00620927,84081.0,84062.0,0.24981316]
[1744848302843,0.0008424,84082.0,84064.0,0.23791397]
[1744848302844,0.00013,84065.0,84064.0,0.23791397]
[1744848303048,0.00013,84065.0,84064.0,0.37079993]
[1744848303234,0.00013,84065.0,84064.0,0.36842138]
[1744848303423,0.00013,84065.0,84064.0,0.70842138]
[1744848304246,0.00013,84065.0,84064.0,0.73057108]
[1744848304450,0.00013,84065.0,84064.0,0.73887734]
[1744848304650,0.00113,84065.0,84064.0,0.73887734]
[1744848306183,0.00013,84065.0,84064.0,0.73887734]
[1744848306566,0.00013,84065.0,84064.0,0.74087734]
[1744848306936,0.00013,84065.0,84064.0,1.15767734]
[1744848307134,0.00013,84065.0,84064.0,1.15967734]
[1744848307487,0.0008424,84082.0,84070.0,0.57789699]
[1744848307783,0.0008424,84082.0,84070.0,0.6973449]
[1744848308144,0.0008424,84082.0,84070.0,0.73886036]
[1744848308546,0.0008424,84082.0,84070.0,0.39886036]
[1744848308696,0.0008424,84082.0,84070.0,0.39986036]
[1744848309039,0.0008424,84082.0,84070.0,0.53770036]
[1744848309629,0.0018428,84071.0,84070.0,0.53770036]
[1744848310188,0.0018428,84071.0,84070.0,0.51555066]
[1744848312258,0.0018428,84071.0,84070.0,0.52762424]
[1744848312693,0.0018428,84071.0,84070.0,0.94642424]
[1744848314017,0.0008428,84071.0,84070.0,0.94642424]
[1744848314372,0.0008428,84071.0,84070.0,0.94842424]
[1744848314609,1e-08,84071.0,84070.0,0.94842424]
[1744848314757,1e-08,84073.0,84072.0,0.23789133]
[1744848314956,1e-08,84073.0,84072.0,0.35971755]
[1744848315168,1e-08,84073.0,84072.0,1.11613924]
[1744848315579,1e-08,84073.0,84072.0,1.12719874]
[1744848315768,1e-08,84073.0,84072.0,1.12919874]
[1744848316699,1e-08,84073.0,84072.0,1.13119874]
[1744848319147,1e-08,84073.0,84072.0,1.12013924]
[1744848322959,0.000843,84074.0,84072.0,1.12013924]
[1744848322960,1e-08,84074.0,84073.0,0.34]
[1744848323154,1e-08,84075.0,84074.0,0.57788567]
[1744848323400,1e-08,84075.0,84074.0,0.69733358]
[1744848323597,1e-08,84075.0,84074.0,0.83537358]
[1744848324316,1e-08,84075.0,84074.0,1.25417358]
[1744848324884,1e-08,84075.0,84074.0,1.2874771]
[1744848325917,1e-08,84075.0,84074.0,1.2884771]
[1744848326112,1e-08,84075.0,84074.0,1.2874771]
[1744848326320,1e-08,84075.0,84074.0,1.25717358]
[1744848326633,1e-08,84075.0,84074.0,1.25917358]
[1744848327016,1e-08,84075.0,84074.0,1.29248281]
[1744848328534,1e-08,84075.0,84074.0,0.68128791]
[1744848330328,1e-08,84075.0,84074.0,1.25917358]
[1744848331337,1e-08,84079.0,84078.0,0.57787435]
[1744848331537,1e-08,84082.0,84081.0,0.57786586]
[1744848331735,1e-08,84082.0,84081.0,1.11611377]
[1744848332901,1e-08,84082.0,84081.0,1.13065462]
[1744848333021,1e-08,84082.0,84081.0,1.14378217]
[1744848334359,1e-08,84082.0,84081.0,1.14578217]
[1744848338377,1e-08,84082.0,84081.0,1.1791491]
[1744848339894,1e-08,84082.0,84081.0,2.2918291]
[1744848342842,1e-08,84082.0,84081.0,2.28070155]
[1744848345169,1e-08,84082.0,84081.0,2.2661607]
[1744848346006,0.04145952,84087.0,84086.0,0.57785172]
[1744848346212,0.04145952,84087.0,84086.0,0.35729963]
[1744848346410,0.04145952,84087.0,84086.0,0.49581963]
[1744848346992,0.04145952,84087.0,84086.0,0.13852]
[1744848347213,0.32720841,84087.0,84086.0,0.13952]
[1744848347605,0.33875251,84087.0,84086.0,0.001]
[1744848348208,0.0499,84076.0,84075.0,0.13852]
[1744848348481,0.06140626,84076.0,84075.0,0.13852]
[1744848349107,0.11040626,84076.0,84075.0,0.13852]
[1744848349633,0.11040626,84076.0,84075.0,0.14152]
[1744848349838,0.0989,84076.0,84075.0,0.14152]
[1744848350197,0.1103815,84076.0,84075.0,0.14152]
[1744848350398,0.1103815,84076.0,84075.0,0.14452]
[1744848353251,0.0989,84076.0,84075.0,0.14452]
[1744848353839,0.0989,84076.0,84075.0,0.38240284]
[1744848358278,0.00858622,84087.0,84086.0,0.23785172]
[1744848358493,0.00237861,84096.0,84088.0,0.23784606]
[1744848358793,0.01189159,84093.0,84088.0,0.23784606]
[1744848358954,0.0932424,84089.0,84088.0,0.23784606]
[1744848360002,0.0008424,84089.0,84088.0,0.35729397]
[1744848360171,0.0018424,84089.0,84088.0,0.35729397]
[1744848360787,0.0018424,84089.0,84088.0,0.35829397]
[1744848363934,0.0018424,84089.0,84088.0,0.49681397]
[1744848364537,0.0018424,84089.0,84088.0,0.37736606]
[1744848364740,0.0018424,84089.0,84088.0,0.23884606]
[1744848366391,0.01189873,84089.0,84088.0,0.23884606]
[1744848366567,0.0018424,84089.0,84088.0,0.23884606]
[1744848368272,0.0986424,84089.0,84088.0,0.001]
[1744848368474,0.10871535,84089.0,84088.0,0.001]
[1744848370962,0.28335738,84084.0,84082.0,0.4188]
[1744848371167,0.05037861,84083.0,84082.0,0.4188]
[1744848371379,0.06015936,84083.0,84082.0,0.4188]
[1744848372540,0.06015936,84083.0,84082.0,0.4208]
[1744848372715,0.06015936,84083.0,84082.0,0.4218]
[1744848372919,0.06015936,84083.0,84082.0,0.4188]
[1744848373119,0.06015936,84083.0,84082.0,0.4198]
[1744848373332,0.06015936,84083.0,84082.0,0.4218]
[1744848374365,0.06015936,84083.0,84082.0,0.003]
[1744848374926,0.10515936,84083.0,84082.0,0.003]
[1744848375333,0.22460727,84083.0,84082.0,0.003]
[1744848375538,0.22460727,84083.0,84068.0,0.13852]
[1744848375539,0.23789982,84069.0,84068.0,0.13852]
[1744848375727,0.23789982,84069.0,84058.0,0.23792855]
[1744848375728,0.01189569,84064.0,84058.0,0.23792855]
[1744848375965,0.01189555,84065.0,84060.0,0.23792529]
[1744848376271,0.01189626,84060.0,84057.0,1.1126]
[1744848376624,0.00237861,84059.0,84057.0,1.3505324]
[1744848376867,0.01213206,84059.0,84057.0,1.3505324]
[1744848377064,0.00237861,84059.0,84057.0,1.1126]
[1744848377272,0.00237861,84059.0,84057.0,1.35053337]
[1744848377477,0.0097495,84058.0,84057.0,1.1146]
[1744848377597,0.01427459,84062.0,84059.0,0.23792809]
[1744848377794,0.01427459,84062.0,84060.0,0.001]
[1744848377999,0.25219694,84062.0,84060.0,0.001]
[1744848378225,0.0485,84061.0,84060.0,0.001]
[1744848378458,0.06060254,84061.0,84060.0,0.001]
[1744848378849,0.11020254,84061.0,84060.0,0.001]
[1744848379076,0.01189668,84057.0,84054.0,0.13956]
[1744848379253,0.00237861,84056.0,84054.0,0.13969]
[1744848379605,0.2476535,84055.0,84054.0,0.13969]
[1744848379738,0.00971406,84055.0,84054.0,0.13969]
[1744848379938,0.00237861,84055.0,84054.0,0.00013]
[1744848380159,0.01209617,84055.0,84054.0,0.00013]
[1744848380917,0.01209617,84055.0,84054.0,0.00213]
[1744848381052,0.01209617,84055.0,84054.0,0.00513]
[1744848381262,0.00971756,84055.0,84054.0,0.00513]
[1744848381464,0.24983239,84057.0,84054.0,0.00513]
[1744848381830,0.00971406,84056.0,84054.0,0.00513]
[1744848381961,0.01209267,84056.0,84054.0,0.00513]
[1744848382168,0.23793944,84055.0,84054.0,0.00313]
[1744848382580,0.25003561,84055.0,84054.0,0.00413]
[1744848382765,0.247657,84055.0,84054.0,0.00413]
[1744848382962,0.247657,84055.0,84054.0,0.00113]
[1744848383338,0.247657,84055.0,84054.0,0.00213]
[1744848383461,0.295357,84055.0,84054.0,0.00213]
[1744848384349,0.81504576,84055.0,84054.0,0.00213]
[1744848384549,0.68359728,84049.0,84048.0,0.0004213]
[1744848384706,0.80304519,84049.0,84048.0,0.0004213]
[1744848384915,0.81247177,84049.0,84048.0,0.0004213]
[1744848385352,0.82416896,84049.0,84048.0,1e-08]
[1744848385547,0.23803289,84022.0,84021.0,0.002]
[1744848385778,0.23803289,84022.0,84021.0,0.00213659]
[1744848385779,0.33273289,84022.0,84021.0,0.00213659]
[1744848385986,0.34212379,84022.0,84021.0,0.00213659]
[1744848387088,0.34612379,84022.0,84021.0,0.00213659]
[1744848389265,0.47178345,84022.0,84021.0,0.00213659]
[1744848396807,0.47178345,84022.0,84021.0,0.00225259]
[1744848400157,0.23805272,84015.0,84014.0,0.0004213]
[1744848400320,0.94842009,84015.0,84014.0,0.0004213]
[1744848400526,0.97705693,84015.0,84014.0,0.0004213]
[1744848400967,0.97705693,84015.0,84002.0,0.0004212]
[1744848401212,0.57808673,84003.0,84002.0,0.0004212]
[1744848401505,0.69753464,84003.0,84002.0,0.0004212]